[Event "*** Titled Tuesday 3|2 Blitz"]
[Site "Chess.com"]
[Date "2016.08.02"]
[Round "1"]
[White "Semetey"]
[Black "Aragon"]
[Result "1-0"]
[WhiteElo "2429"]
[BlackElo "2084"]
[TimeControl "180+2"]
[EndTime "11:09:25 PDT"]
[Termination "Semetey won by resignation"]

1. d4 {[%clk 0:02:58.7]} 1... f5 {[%clk 0:02:59.3]} 2. Nf3 {[%clk 0:02:53.7]}
2... Nf6 {[%clk 0:02:57.3]} 3. c4 {[%clk 0:02:54.6]} 3... e6 {[%clk 0:02:58.2]}
4. e3 {[%clk 0:02:55.7]} 4... b6 {[%clk 0:02:58.1]} 5. Bd3 {[%clk 0:02:56]} 5...
Bb7 {[%clk 0:02:59.2]} 6. O-O {[%clk 0:02:57.6]} 6... Be7 {[%clk 0:02:54.5]} 7.
Nbd2 {[%clk 0:02:56.8]} 7... O-O {[%clk 0:02:55.4]} 8. Qc2 {[%clk 0:02:58.1]}
8... Qe8 {[%clk 0:02:46.7]} 9. b3 {[%clk 0:02:56.8]} 9... a5 {[%clk 0:02:43.7]}
10. Bb2 {[%clk 0:02:57.4]} 10... Na6 {[%clk 0:02:43.1]} 11. a3 {[%clk
0:02:57.9]} 11... Qh5 {[%clk 0:02:42.9]} 12. h3 {[%clk 0:02:17.7]} 12... g5
{[%clk 0:02:32.8]} 13. d5 {[%clk 0:02:06.9]} 13... g4 {[%clk 0:02:30.1]} 14.
hxg4 {[%clk 0:02:08]} 14... Nxg4 {[%clk 0:02:19.9]} 15. e4 {[%clk 0:02:08.9]}
15... Nc5 {[%clk 0:02:13.4]} 16. exf5 {[%clk 0:02:09.6]} 16... Nxd3 {[%clk
0:02:11.4]} 17. Qxd3 {[%clk 0:02:10.6]} 17... Rxf5 {[%clk 0:02:10.7]} 18. Rfe1
{[%clk 0:02:06.1]} 18... Raf8 {[%clk 0:02:09.9]} 19. Re4 {[%clk 0:02:04.6]}
19... Bc5 {[%clk 0:01:56.2]} 20. Rxg4+ {[%clk 0:01:55.3]} 20... Qxg4 {[%clk
0:01:51.3]} 21. Qc3 {[%clk 0:01:52.8]} 21... e5 {[%clk 0:01:48.2]} 22. b4 {[%clk
0:01:50.9]} 22... Bd4 {[%clk 0:01:33]} 23. Qb3 {[%clk 0:01:27]} 23... Bxb2
{[%clk 0:01:21.2]} 24. Qxb2 {[%clk 0:01:27.5]} 24... e4 {[%clk 0:01:11.5]} 25.
Qd4 {[%clk 0:01:01.8]} 25... Rxf3 {[%clk 0:01:06.7]} 26. Nxf3 {[%clk 0:01:02.2]}
26... Rxf3 {[%clk 0:01:07]} 27. Re1 {[%clk 0:01:03]} 27... Rf4 {[%clk
0:01:01.9]} 28. bxa5 {[%clk 0:01:02.3]} 28... c5 {[%clk 0:00:50.7]} 29. Qe5
{[%clk 0:00:53.1]} 29... Ba6 {[%clk 0:00:46.4]} 30. axb6 {[%clk 0:00:49.8]}
30... Rf5 {[%clk 0:00:41.7]} 31. Qe7 {[%clk 0:00:27.1]} 31... Rf7 {[%clk
0:00:41]} 32. Qe8+ {[%clk 0:00:24.1]} 32... Rf8 {[%clk 0:00:42]} 33. Qe7 {[%clk
0:00:21.3]} 33... Qg7 {[%clk 0:00:41.7]} 34. Qxc5 {[%clk 0:00:22.2]} 34... Rb8
{[%clk 0:00:41.6]} 35. Rxe4 {[%clk 0:00:22.3]} 35... d6 {[%clk 0:00:42.9]} 36.
Qe3 {[%clk 0:00:22.8]} 36... Bb7 {[%clk 0:00:41.6]} 37. Re8+ {[%clk 0:00:23]}
37... Rxe8 {[%clk 0:00:42.7]} 38. Qxe8+ {[%clk 0:00:24.4]} 38... Qf8 {[%clk
0:00:44.6]} 39. Qe6+ {[%clk 0:00:25.5]} 39... Qf7 {[%clk 0:00:45]} 40. Qxd6
{[%clk 0:00:26.5]} 40... Qe8 {[%clk 0:00:43.3]} 41. Qg3+ {[%clk 0:00:25.5]}
41... Kf8 {[%clk 0:00:43.9]} 42. Qf4+ {[%clk 0:00:26.5]} 42... Kg8 {[%clk
0:00:45]} 43. Qg5+ {[%clk 0:00:24.9]} 43... Kf8 {[%clk 0:00:46.1]} 44. Qf6+
{[%clk 0:00:25.7]} 44... Kg8 {[%clk 0:00:46.8]} 45. a4 {[%clk 0:00:23.2]} 45...
Qxa4 {[%clk 0:00:45.1]} 46. Qd8+ {[%clk 0:00:24.2]} 46... Kf7 {[%clk 0:00:44.7]}
47. Qc7+ {[%clk 0:00:25]} 47... Kg6 {[%clk 0:00:45.6]} 48. Qxb7 {[%clk
0:00:26.3]} 48... Qd1+ {[%clk 0:00:46]} 49. Kh2 {[%clk 0:00:27.6]} 49... Qh5+
{[%clk 0:00:47]} 50. Kg3 {[%clk 0:00:29]} 50... Qg5+ {[%clk 0:00:48]} 51. Kf3
{[%clk 0:00:30.5]} 51... Qf6+ {[%clk 0:00:45.8]} 52. Ke3 {[%clk 0:00:31.6]}
52... Qc3+ {[%clk 0:00:46.9]} 53. Ke4 {[%clk 0:00:32.8]} 53... Qxc4+ {[%clk
0:00:48.3]} 54. Ke5 {[%clk 0:00:34.2]} 54... Qc3+ {[%clk 0:00:45]} 55. Kd6
{[%clk 0:00:35.5]} 55... Qf6+ {[%clk 0:00:41.4]} 56. Kc7 {[%clk 0:00:35.6]}
56... Qc3+ {[%clk 0:00:41.1]} 57. Qc6+ {[%clk 0:00:35.8]} 57... Qxc6+ {[%clk
0:00:40.4]} 58. dxc6 {[%clk 0:00:37]} 1-0

[Event "*** Titled Tuesday 3|2 Blitz"]
[Site "Chess.com"]
[Date "2016.08.02"]
[Round "1"]
[White "joppie2"]
[Black "Colombiano07"]
[Result "0-1"]
[WhiteElo "2487"]
[BlackElo "2232"]
[TimeControl "180+2"]
[EndTime "11:09:30 PDT"]
[Termination "Colombiano07 won by resignation"]

1. e4 {[%clk 0:03:01.9]} 1... c5 {[%clk 0:02:58.9]} 2. Nf3 {[%clk 0:03:03]} 2...
Nc6 {[%clk 0:02:59]} 3. Bb5 {[%clk 0:03:02.8]} 3... g6 {[%clk 0:02:58.8]} 4. O-O
{[%clk 0:03:01.2]} 4... Bg7 {[%clk 0:02:59.2]} 5. Bxc6 {[%clk 0:03:00.4]} 5...
bxc6 {[%clk 0:02:59.4]} 6. d3 {[%clk 0:02:55.2]} 6... Nf6 {[%clk 0:02:56.9]} 7.
Nc3 {[%clk 0:02:56.1]} 7... O-O {[%clk 0:02:57]} 8. Be3 {[%clk 0:02:55.4]} 8...
d6 {[%clk 0:02:55.7]} 9. Qd2 {[%clk 0:02:56.4]} 9... Ng4 {[%clk 0:02:51.9]} 10.
Bf4 {[%clk 0:02:57.1]} 10... e5 {[%clk 0:02:47.8]} 11. Bg5 {[%clk 0:02:52.6]}
11... f6 {[%clk 0:02:47.8]} 12. Bh4 {[%clk 0:02:53.9]} 12... Qe8 {[%clk
0:02:36.8]} 13. a3 {[%clk 0:02:53.3]} 13... a5 {[%clk 0:02:36.7]} 14. Rab1
{[%clk 0:02:47.2]} 14... a4 {[%clk 0:02:36.9]} 15. Rfe1 {[%clk 0:02:27]} 15...
h5 {[%clk 0:02:34.4]} 16. h3 {[%clk 0:02:25.1]} 16... Nh6 {[%clk 0:02:34.8]} 17.
Ne2 {[%clk 0:01:51.8]} 17... Be6 {[%clk 0:02:30.9]} 18. c3 {[%clk 0:01:47.4]}
18... Rb8 {[%clk 0:02:25.5]} 19. d4 {[%clk 0:01:48.5]} 19... cxd4 {[%clk
0:02:23.3]} 20. cxd4 {[%clk 0:01:50.4]} 20... g5 {[%clk 0:02:10.6]} 21. Bg3
{[%clk 0:01:50.8]} 21... Nf7 {[%clk 0:02:10.8]} 22. Nc3 {[%clk 0:01:47.7]} 22...
Bb3 {[%clk 0:02:09.8]} 23. Rbc1 {[%clk 0:01:46.4]} 23... Rb6 {[%clk 0:01:55.6]}
24. Qe3 {[%clk 0:01:42.1]} 24... Qb8 {[%clk 0:01:55.8]} 25. Nd2 {[%clk
0:01:40.2]} 25... Ra6 {[%clk 0:01:53.2]} 26. Qd3 {[%clk 0:01:39.1]} 26... Qb6
{[%clk 0:01:46.3]} 27. dxe5 {[%clk 0:01:38.1]} 27... dxe5 {[%clk 0:01:45.7]} 28.
Nc4 {[%clk 0:01:39.5]} 28... Rd8 {[%clk 0:01:42.7]} 29. Qe2 {[%clk 0:01:35.5]}
29... Qb7 {[%clk 0:01:31.1]} 30. f3 {[%clk 0:01:31.3]} 30... Bf8 {[%clk
0:01:28.8]} 31. Bf2 {[%clk 0:01:31.8]} 31... Raa8 {[%clk 0:01:26.4]} 32. Ne3
{[%clk 0:01:31.2]} 32... Be6 {[%clk 0:01:25.5]} 33. Nf5 {[%clk 0:01:23.9]} 33...
Nd6 {[%clk 0:01:14.6]} 34. Nxd6 {[%clk 0:01:17.7]} 34... Bxd6 {[%clk 0:01:14.5]}
35. Red1 {[%clk 0:01:16.5]} 35... Be7 {[%clk 0:01:15]} 36. h4 {[%clk 0:01:15.6]}
36... g4 {[%clk 0:01:14.1]} 37. Qe3 {[%clk 0:01:16.4]} 37... Qxb2 {[%clk
0:01:12.8]} 38. Qh6 {[%clk 0:01:12.7]} 38... Rxd1+ {[%clk 0:01:09.7]} 39. Nxd1
{[%clk 0:01:13.5]} 39... Qxa3 {[%clk 0:01:09.2]} 40. Qg6+ {[%clk 0:01:14.2]}
40... Kf8 {[%clk 0:01:08.3]} 41. Be3 {[%clk 0:01:12.1]} 41... Bf7 {[%clk
0:01:08.1]} 42. Qh7 {[%clk 0:01:13.5]} 42... Rd8 {[%clk 0:01:04.7]} 43. Nf2
{[%clk 0:01:09.2]} 43... Qxe3 {[%clk 0:01:03.8]} 44. Rxc6 {[%clk 0:00:51.3]}
44... g3 {[%clk 0:00:43.4]} 45. Qh8+ {[%clk 0:00:49.9]} 45... Bg8 {[%clk
0:00:44.4]} 46. Rxf6+ {[%clk 0:00:46]} 46... Bxf6 {[%clk 0:00:45.2]} 47. Qxf6+
{[%clk 0:00:47.3]} 47... Ke8 {[%clk 0:00:46.3]} 48. Qxe5+ {[%clk 0:00:48.9]}
48... Kf8 {[%clk 0:00:44.7]} 49. Qf6+ {[%clk 0:00:49.6]} 49... Ke8 {[%clk
0:00:44.5]} 50. Qe5+ {[%clk 0:00:50.8]} 50... Kf7 {[%clk 0:00:41.9]} 51. Qxh5+
{[%clk 0:00:47.3]} 51... Ke6 {[%clk 0:00:39.1]} 52. Qg6+ {[%clk 0:00:46]} 52...
Kd7 {[%clk 0:00:39.5]} 53. Qxg3 {[%clk 0:00:42.5]} 53... Be6 {[%clk 0:00:40.4]}
54. Kh2 {[%clk 0:00:36.2]} 54... Rg8 {[%clk 0:00:40.8]} 55. Ng4 {[%clk
0:00:27.6]} 55... Rxg4 {[%clk 0:00:39.5]} 56. Qe5 {[%clk 0:00:25.3]} 56... Qf4+
{[%clk 0:00:36.1]} 0-1

[Event "*** Titled Tuesday 3|2 Blitz"]
[Site "Chess.com"]
[Date "2016.08.02"]
[Round "1"]
[White "stefanodinn"]
[Black "GMKrikor"]
[Result "1/2-1/2"]
[WhiteElo "2208"]
[BlackElo "2490"]
[TimeControl "180+2"]
[EndTime "11:09:36 PDT"]
[Termination "Game drawn by stalemate"]

1. e4 {[%clk 0:02:36.6]} 1... c5 {[%clk 0:02:56.2]} 2. Nf3 {[%clk 0:02:37.4]}
2... d6 {[%clk 0:02:57.1]} 3. d4 {[%clk 0:02:38.3]} 3... cxd4 {[%clk 0:02:58.1]}
4. Nxd4 {[%clk 0:02:39.5]} 4... Nf6 {[%clk 0:02:59.8]} 5. f3 {[%clk 0:02:40.8]}
5... e5 {[%clk 0:02:58.6]} 6. Bb5+ {[%clk 0:02:39.8]} 6... Nbd7 {[%clk 0:02:51]}
7. Nf5 {[%clk 0:02:37.5]} 7... a6 {[%clk 0:02:48.1]} 8. Bxd7+ {[%clk 0:02:34.7]}
8... Qxd7 {[%clk 0:02:47.2]} 9. Bg5 {[%clk 0:02:32.2]} 9... Qe6 {[%clk
0:02:12.4]} 10. Nc3 {[%clk 0:02:26.6]} 10... g6 {[%clk 0:02:02.2]} 11. Ne3
{[%clk 0:02:10.3]} 11... Be7 {[%clk 0:01:03.6]} 12. Ncd5 {[%clk 0:02:05]} 12...
Nxd5 {[%clk 0:01:04.7]} 13. Nxd5 {[%clk 0:02:04.7]} 13... Bd8 {[%clk 0:01:05.9]}
14. Bxd8 {[%clk 0:01:59.2]} 14... Kxd8 {[%clk 0:01:07.4]} 15. O-O {[%clk
0:01:59.7]} 15... Bd7 {[%clk 0:01:03.3]} 16. c4 {[%clk 0:01:48]} 16... Rc8
{[%clk 0:01:03.8]} 17. Rc1 {[%clk 0:01:44.5]} 17... Bc6 {[%clk 0:01:05.1]} 18.
Qd2 {[%clk 0:01:24.6]} 18... Bxd5 {[%clk 0:00:46.8]} 19. cxd5 {[%clk 0:01:20.8]}
19... Qe7 {[%clk 0:00:41.8]} 20. Qa5+ {[%clk 0:01:12.6]} 20... Rc7 {[%clk
0:00:41]} 21. Rc3 {[%clk 0:01:05.1]} 21... Kc8 {[%clk 0:00:42]} 22. Rfc1 {[%clk
0:00:52.5]} 22... Rxc3 {[%clk 0:00:42.6]} 23. Rxc3+ {[%clk 0:00:52.9]} 23... Kb8
{[%clk 0:00:44.3]} 24. Qb6 {[%clk 0:00:48.3]} 24... Rc8 {[%clk 0:00:40.3]} 25.
Rc6 {[%clk 0:00:46.5]} 25... Rxc6 {[%clk 0:00:35.6]} 26. dxc6 {[%clk 0:00:46.6]}
26... Qc7 {[%clk 0:00:37.5]} 27. Qxc7+ {[%clk 0:00:38.3]} 27... Kxc7 {[%clk
0:00:38.8]} 28. cxb7 {[%clk 0:00:39.8]} 28... Kxb7 {[%clk 0:00:40.5]} 29. Kf2
{[%clk 0:00:40.9]} 29... Kc6 {[%clk 0:00:41.2]} 30. Ke3 {[%clk 0:00:41.8]} 30...
f5 {[%clk 0:00:35.5]} 31. Kd3 {[%clk 0:00:37.8]} 31... Kc5 {[%clk 0:00:31.1]}
32. Kc3 {[%clk 0:00:37.6]} 32... a5 {[%clk 0:00:30.3]} 33. b3 {[%clk 0:00:34.8]}
33... d5 {[%clk 0:00:30.8]} 34. exd5 {[%clk 0:00:35.6]} 34... Kxd5 {[%clk
0:00:32.1]} 35. Kd3 {[%clk 0:00:36.4]} 35... Kc5 {[%clk 0:00:32.9]} 36. a3
{[%clk 0:00:37.2]} 36... Kb5 {[%clk 0:00:31.6]} 37. Ke3 {[%clk 0:00:33.9]} 37...
Kc5 {[%clk 0:00:32.3]} 38. g3 {[%clk 0:00:30.7]} 38... h5 {[%clk 0:00:29.6]} 39.
h3 {[%clk 0:00:29.9]} 39... g5 {[%clk 0:00:29.9]} 40. g4 {[%clk 0:00:25]} 40...
hxg4 {[%clk 0:00:23.9]} 41. hxg4 {[%clk 0:00:24.6]} 41... fxg4 {[%clk
0:00:09.9]} 42. fxg4 {[%clk 0:00:25.5]} 42... Kd5 {[%clk 0:00:11.5]} 43. b4
{[%clk 0:00:18.1]} 43... a4 {[%clk 0:00:12.7]} 44. Kd3 {[%clk 0:00:17.5]} 44...
e4+ {[%clk 0:00:14.3]} 45. Ke3 {[%clk 0:00:18.4]} 45... Kc4 {[%clk 0:00:16.2]}
46. Kxe4 {[%clk 0:00:18.5]} 46... Kb3 {[%clk 0:00:18.1]} 47. Kd3 {[%clk
0:00:16.3]} 47... Kxa3 {[%clk 0:00:19.2]} 48. Kc3 {[%clk 0:00:17.4]} 48... Ka2
{[%clk 0:00:20.8]} 49. Kc2 {[%clk 0:00:18.3]} 49... a3 {[%clk 0:00:20.4]} 50. b5
{[%clk 0:00:19.1]} 50... Ka1 {[%clk 0:00:22.3]} 51. b6 {[%clk 0:00:11.8]} 51...
a2 {[%clk 0:00:23.7]} 52. b7 {[%clk 0:00:05.4]} 1/2-1/2

[Event "*** Titled Tuesday 3|2 Blitz"]
[Site "Chess.com"]
[Date "2016.08.02"]
[Round "1"]
[White "fireheart92"]
[Black "Spas_Kozhuharov"]
[Result "1-0"]
[WhiteElo "2266"]
[BlackElo "2454"]
[TimeControl "180+2"]
[EndTime "11:09:36 PDT"]
[Termination "fireheart92 won by resignation"]

1. e4 {[%clk 0:02:42.4]} 1... c6 {[%clk 0:02:52.7]} 2. d4 {[%clk 0:02:42.8]}
2... d5 {[%clk 0:02:50.4]} 3. exd5 {[%clk 0:02:44.4]} 3... cxd5 {[%clk
0:02:51.9]} 4. c4 {[%clk 0:02:45.7]} 4... Nf6 {[%clk 0:02:52.9]} 5. Nc3 {[%clk
0:02:46.6]} 5... Nc6 {[%clk 0:02:53.5]} 6. Nf3 {[%clk 0:02:47.1]} 6... Bg4
{[%clk 0:02:53.5]} 7. cxd5 {[%clk 0:02:45.2]} 7... Nxd5 {[%clk 0:02:55.4]} 8.
Qb3 {[%clk 0:02:46.3]} 8... Bxf3 {[%clk 0:02:56.7]} 9. gxf3 {[%clk 0:02:47.4]}
9... e6 {[%clk 0:02:57.4]} 10. Qxb7 {[%clk 0:02:48.1]} 10... Nxd4 {[%clk
0:02:58.8]} 11. Bb5+ {[%clk 0:02:48.6]} 11... Nxb5 {[%clk 0:03:00.2]} 12. Qc6+
{[%clk 0:02:49.9]} 12... Ke7 {[%clk 0:03:01.6]} 13. Qxb5 {[%clk 0:02:51.2]}
13... Qd7 {[%clk 0:03:03.1]} 14. Nxd5+ {[%clk 0:02:51.9]} 14... Qxd5 {[%clk
0:03:05]} 15. Qxd5 {[%clk 0:02:53]} 15... exd5 {[%clk 0:03:06.9]} 16. Be3 {[%clk
0:02:54.6]} 16... Ke6 {[%clk 0:03:07.1]} 17. O-O-O {[%clk 0:02:55.7]} 17... Bb4
{[%clk 0:03:07]} 18. Kb1 {[%clk 0:02:56.6]} 18... Rhc8 {[%clk 0:03:05.6]} 19.
Bd4 {[%clk 0:02:49.3]} 19... f6 {[%clk 0:03:03.5]} 20. a3 {[%clk 0:02:50.3]}
20... Ba5 {[%clk 0:02:55.8]} 21. b4 {[%clk 0:02:44.6]} 21... Bb6 {[%clk
0:02:56.1]} 22. Kb2 {[%clk 0:02:44.1]} 22... Kf5 {[%clk 0:02:55.9]} 23. Bxb6
{[%clk 0:02:41.9]} 23... axb6 {[%clk 0:02:57.5]} 24. Rxd5+ {[%clk 0:02:43.1]}
24... Kf4 {[%clk 0:02:58.7]} 25. Rd3 {[%clk 0:02:43.4]} 25... Re8 {[%clk
0:02:59]} 26. Rc1 {[%clk 0:02:42.9]} 26... Re2+ {[%clk 0:02:57]} 27. Rc2 {[%clk
0:02:42.2]} 27... Rae8 {[%clk 0:02:41.7]} 28. a4 {[%clk 0:02:34.4]} 28... g5
{[%clk 0:02:40.4]} 29. Rd6 {[%clk 0:02:22.4]} 29... f5 {[%clk 0:02:34.4]} 30.
Rxb6 {[%clk 0:02:19.5]} 30... Kxf3 {[%clk 0:02:35.6]} 31. a5 {[%clk 0:02:18.7]}
31... Kxf2 {[%clk 0:02:34]} 32. a6 {[%clk 0:02:17.1]} 32... f4 {[%clk
0:02:34.3]} 33. a7 {[%clk 0:02:04.3]} 33... Ra8 {[%clk 0:02:26.2]} 34. Rb7
{[%clk 0:02:00.4]} 34... f3 {[%clk 0:02:25.6]} 35. b5 {[%clk 0:02:01.4]} 35...
Rxc2+ {[%clk 0:02:21.7]} 36. Kxc2 {[%clk 0:02:01.6]} 36... Kg2 {[%clk
0:02:22.9]} 37. b6 {[%clk 0:02:01.9]} 37... f2 {[%clk 0:02:22.1]} 38. Rf7 {[%clk
0:02:02.8]} 38... g4 {[%clk 0:02:19.2]} 39. b7 {[%clk 0:01:42.1]} 39... Rxa7
{[%clk 0:02:19.3]} 40. Rxf2+ {[%clk 0:01:43.2]} 40... Kxf2 {[%clk 0:02:18.3]}
41. b8=Q {[%clk 0:01:43.6]} 41... Ra4 {[%clk 0:01:31.1]} 42. Qb6+ {[%clk
0:01:21.4]} 42... Ke1 {[%clk 0:01:11.2]} 43. Qg1+ {[%clk 0:00:51.4]} 43... Ke2
{[%clk 0:01:11.5]} 44. Qg2+ {[%clk 0:00:52.5]} 44... Ke1 {[%clk 0:01:12.3]} 45.
Kd3 {[%clk 0:00:52.7]} 45... Ra3+ {[%clk 0:01:10.6]} 46. Ke4 {[%clk 0:00:53.8]}
46... h5 {[%clk 0:01:07.5]} 47. Kf4 {[%clk 0:00:30.8]} 47... Rh3 {[%clk
0:01:02.4]} 48. Kg5 {[%clk 0:00:31.9]} 48... Kd1 {[%clk 0:01:02.7]} 49. Qf2
{[%clk 0:00:33.2]} 49... Kc1 {[%clk 0:01:03.1]} 50. Qe2 {[%clk 0:00:34.3]} 50...
Kb1 {[%clk 0:01:04.3]} 51. Qd2 {[%clk 0:00:35.5]} 51... Ka1 {[%clk 0:00:50]} 52.
Qc2 {[%clk 0:00:36.4]} 52... g3 {[%clk 0:00:43.7]} 53. Qd1+ {[%clk 0:00:30]}
53... Kb2 {[%clk 0:00:42.3]} 54. Qe2+ {[%clk 0:00:30.5]} 54... Kc3 {[%clk
0:00:40.4]} 55. Qe3+ {[%clk 0:00:29.2]} 55... Kc2 {[%clk 0:00:40.7]} 56. hxg3
{[%clk 0:00:29.5]} 1-0

[Event "*** Titled Tuesday 3|2 Blitz"]
[Site "Chess.com"]
[Date "2016.08.02"]
[Round "1"]
[White "Oleksandr_Bortnyk"]
[Black "profofchess"]
[Result "1/2-1/2"]
[WhiteElo "2575"]
[BlackElo "2302"]
[TimeControl "180+2"]
[EndTime "11:10:15 PDT"]
[Termination "Game drawn by agreement"]

1. e4 {[%clk 0:02:58.1]} 1... e6 {[%clk 0:03:01.1]} 2. d4 {[%clk 0:02:58.4]}
2... d5 {[%clk 0:03:02.5]} 3. Nc3 {[%clk 0:02:58.9]} 3... Bb4 {[%clk 0:03:02.9]}
4. exd5 {[%clk 0:02:54.8]} 4... exd5 {[%clk 0:03:03.7]} 5. Bd3 {[%clk
0:02:55.6]} 5... Nc6 {[%clk 0:03:02.3]} 6. Ne2 {[%clk 0:02:45.6]} 6... Nf6
{[%clk 0:03:00]} 7. O-O {[%clk 0:02:46]} 7... O-O {[%clk 0:02:56.8]} 8. Bg5
{[%clk 0:02:44.6]} 8... h6 {[%clk 0:02:54.8]} 9. Bh4 {[%clk 0:02:45.4]} 9... Be7
{[%clk 0:02:33.2]} 10. a3 {[%clk 0:02:29.2]} 10... Bg4 {[%clk 0:02:12.3]} 11. h3
{[%clk 0:02:26.3]} 11... Bh5 {[%clk 0:02:09.7]} 12. g4 {[%clk 0:02:12.4]} 12...
Bg6 {[%clk 0:02:10.7]} 13. Bxg6 {[%clk 0:02:10.2]} 13... fxg6 {[%clk 0:02:12.1]}
14. Nf4 {[%clk 0:02:11.6]} 14... g5 {[%clk 0:01:45.8]} 15. Ne6 {[%clk
0:02:10.2]} 15... Qd7 {[%clk 0:01:46.8]} 16. Nxf8 {[%clk 0:02:11.1]} 16... Rxf8
{[%clk 0:01:47.7]} 17. Bg3 {[%clk 0:02:12.3]} 17... h5 {[%clk 0:01:47.8]} 18. f3
{[%clk 0:02:08.7]} 18... Bd6 {[%clk 0:01:40.4]} 19. Bxd6 {[%clk 0:02:05.4]}
19... Qxd6 {[%clk 0:01:41.7]} 20. Ne2 {[%clk 0:02:01.7]} 20... Ne7 {[%clk
0:01:22.9]} 21. Qd3 {[%clk 0:02:00.9]} 21... hxg4 {[%clk 0:01:09]} 22. fxg4
{[%clk 0:01:52.6]} 22... Ne4 {[%clk 0:01:09.9]} 23. Rxf8+ {[%clk 0:01:52.8]}
23... Kxf8 {[%clk 0:01:11.1]} 24. Rf1+ {[%clk 0:01:53.6]} 24... Kg8 {[%clk
0:01:12.2]} 25. c4 {[%clk 0:01:52.5]} 25... Ng6 {[%clk 0:00:57.1]} 26. cxd5
{[%clk 0:01:33.3]} 26... Qxd5 {[%clk 0:00:56.4]} 27. Rf5 {[%clk 0:01:33.4]}
27... Qc6 {[%clk 0:00:42.4]} 28. b3 {[%clk 0:00:53.4]} 28... Nh4 {[%clk
0:00:30.7]} 29. Rf1 {[%clk 0:00:23]} 29... Nd2 {[%clk 0:00:25.2]} 30. d5 {[%clk
0:00:18.7]} 30... Qc5+ {[%clk 0:00:21.6]} 31. Nd4 {[%clk 0:00:13.4]} 31... Nxf1
{[%clk 0:00:21.9]} 32. Kxf1 {[%clk 0:00:15.3]} 32... Qc1+ {[%clk 0:00:17]} 33.
Kf2 {[%clk 0:00:15.9]} 33... Qf4+ {[%clk 0:00:17.9]} 34. Ke2 {[%clk 0:00:16.3]}
34... Qh2+ {[%clk 0:00:17.6]} 35. Kd1 {[%clk 0:00:16.7]} 35... Qh1+ {[%clk
0:00:15.9]} 36. Kc2 {[%clk 0:00:16]} 36... Qxd5 {[%clk 0:00:17.4]} 37. Qe3
{[%clk 0:00:13.7]} 37... Ng2 {[%clk 0:00:12.4]} 38. Qe8+ {[%clk 0:00:14]} 38...
Kh7 {[%clk 0:00:13.3]} 39. Nf5 {[%clk 0:00:15.9]} 39... Qc6+ {[%clk 0:00:11.4]}
40. Qxc6 {[%clk 0:00:15.6]} 40... bxc6 {[%clk 0:00:13.3]} 41. Kd3 {[%clk
0:00:16.1]} 41... Nf4+ {[%clk 0:00:14.4]} 42. Kc4 {[%clk 0:00:18]} 42... Nxh3
{[%clk 0:00:15.7]} 43. Kc5 {[%clk 0:00:19.4]} 43... Nf2 {[%clk 0:00:16.9]} 44.
Ne3 {[%clk 0:00:20.7]} 44... Kg6 {[%clk 0:00:13.5]} 45. Kxc6 {[%clk 0:00:21.3]}
45... Kf6 {[%clk 0:00:15.1]} 46. Kxc7 {[%clk 0:00:20.3]} 46... Ke5 {[%clk
0:00:16.4]} 47. Kb7 {[%clk 0:00:20]} 47... Ke4 {[%clk 0:00:17.6]} 48. Nf1 {[%clk
0:00:20.1]} 48... Nxg4 {[%clk 0:00:18.4]} 49. Kxa7 {[%clk 0:00:21.7]} 49... Ne3
{[%clk 0:00:16.4]} 50. Ng3+ {[%clk 0:00:21.4]} 50... Kd3 {[%clk 0:00:05.7]} 51.
b4 {[%clk 0:00:19.8]} 51... Kc4 {[%clk 0:00:06.9]} 52. Ne4 {[%clk 0:00:16.9]}
52... Nc2 {[%clk 0:00:07.4]} 53. Nd6+ {[%clk 0:00:13.1]} 53... Kd5 {[%clk
0:00:08.2]} 54. Nf7 {[%clk 0:00:07]} 54... Nxa3 {[%clk 0:00:08.9]} 55. Nxg5
{[%clk 0:00:07.7]} 55... Kc4 {[%clk 0:00:10.3]} 56. Ne6 {[%clk 0:00:08.4]} 56...
Kxb4 {[%clk 0:00:11.6]} 57. Nxg7 {[%clk 0:00:09.2]} 57... Nb5+ {[%clk
0:00:12.9]} 1/2-1/2